bitfinex-derivatives/quotes_ETHF0:USTF0_20250816
["timestamp","ask_amount","ask_price","bid_price","bid_amount"]
[1755340676684,3.7927,4403.8,4403.2,26.507]
[1755340676886,7.077,4403.8,4403.7,3.2288]
[1755340677183,7.44582381,4403.8,4403.7,24.3918]
[1755340677382,7.20953374,4403.8,4403.7,24.3918]
[1755340677578,7.20953374,4403.8,4403.7,24.9478]
[1755340677779,4.00173374,4403.8,4403.7,24.9478]
[1755340678773,1.60363374,4403.8,4403.7,24.9478]
[1755340678979,1.10303374,4403.8,4403.7,24.9478]
[1755340679279,1.33949617,4403.8,4403.7,24.9478]
[1755340679678,1.10303374,4403.8,4403.7,24.9478]
[1755340680083,1.60363374,4403.8,4403.7,24.9478]
[1755340680284,2.40403374,4403.8,4403.7,24.9478]
[1755340680679,3.01043374,4403.8,4403.7,24.9478]
[1755340680882,4.00175681,4403.8,4403.7,24.9478]
[1755340683084,4.00175681,4403.8,4403.7,24.3918]
[1755340683085,0.13255681,4403.8,4403.7,24.3918]
[1755340683386,1.0913,4404.2,4403.7,22.6917]
[1755340683584,0.8862,4403.9,4403.8,3.7848]
[1755340683779,0.51816357,4403.9,4403.8,3.7848]
[1755340684086,0.1,4404.2,4404.0,0.45381]
[1755340684289,0.1,4404.2,4404.1,25.39161]
[1755340684587,0.1,4404.2,4404.1,25.39061]
[1755340685187,0.1,4404.2,4404.1,24.9368]
[1755340685386,1.0705,4404.2,4404.1,24.9368]
[1755340685582,1.0705,4404.2,4404.1,1.1261]
[1755340685787,3.9692,4404.2,4404.1,24.3798]
[1755340686286,3.9692,4404.2,4403.8,4.1757]
[1755340686287,1.4926,4403.9,4403.8,4.1757]
[1755340686590,3.8692,4403.9,4403.8,27.5856]
[1755340687193,2.8779,4403.9,4403.8,27.5856]
[1755340687385,2.8779,4403.9,4403.8,28.1416]
[1755340687888,3.8692,4403.9,4403.8,3.2078]
[1755340688189,1.4926,4403.9,4403.8,21.148]
[1755340688787,3.8692,4403.9,4403.8,21.148]
[1755340689893,3.8692,4403.9,4403.8,24.3768]
[1755340690190,1.5926,4404.2,4403.8,21.148]
[1755340690493,1.4926,4404.1,4404.0,1.5287]
[1755340690691,1.4926,4404.1,4404.0,3.2288]
[1755340690892,0.8862,4404.1,4404.0,3.7848]
[1755340691187,0.1,4404.2,4404.1,2.3062]
[1755340691492,0.1,4404.2,4404.1,24.9278]
[1755340692393,0.1,4404.2,4404.1,25.38161]
[1755340692892,1.3769,4405.0,4404.9,1.5287]
[1755340693091,2.81040093,4405.0,4404.9,24.9258]
[1755340693394,0.3856,4405.0,4404.9,24.9258]
[1755340693581,0.5849,4405.2,4405.1,0.52]
[1755340693781,7.077,4405.5,4405.4,3.2288]
[1755340693992,4.00168116,4405.5,4405.4,24.3668]
[1755340695688,0.9705,4405.5,4405.4,24.9228]
[1755340696088,0.9913,4405.2,4403.5,2.84240292]
[1755340696282,0.992,4403.6,4403.2,0.52]
[1755340696484,0.9913,4403.8,4403.4,0.7322]
[1755340696693,0.9913,4403.8,4403.4,2.8169]
[1755340696694,0.992,4403.5,4403.4,2.8169]
[1755340696888,0.992,4403.5,4403.1,0.10219956]
[1755340697191,0.992,4403.5,4403.4,2.0847]
[1755340697396,0.992,4403.5,4403.4,2.8169]
[1755340697590,2.3884,4403.5,4403.4,23.2177]
[1755340699496,1.9833,4403.5,4403.4,24.9253]
[1755340699696,1.971641,4403.5,4403.4,24.9253]
[1755340701293,1.5977,4403.5,4403.4,24.9253]
[1755340701490,1.9695,4403.8,4403.7,1.5483]
[1755340701696,2.103873,4403.8,4403.7,24.9517]
[1755340702097,2.493673,4403.8,4403.7,21.6958]
[1755340702299,2.493673,4403.8,4403.7,23.2441]
[1755340702600,2.103873,4403.8,4403.7,24.9517]
[1755340703199,2.103873,4403.8,4403.7,1.4516]
[1755340703408,2.493673,4403.8,4403.7,21.136]
[1755340703901,1.0036,4403.6,4403.5,0.5608]
[1755340704101,2.3593,4403.6,4403.5,21.136]
[1755340704496,2.49366371,4403.6,4403.5,0.5608]
[1755340704898,2.49366371,4403.6,4403.5,21.6968]
[1755340705301,2.49366371,4403.6,4403.5,0.5608]
[1755340705495,2.49366371,4403.6,4403.5,21.6958]
[1755340705696,1.3557,4403.5,4403.2,0.5608]
[1755340705891,2.3593,4403.3,4403.2,21.6968]
[1755340706202,2.3593,4403.3,4403.2,0.5608]
[1755340706398,2.3593,4403.3,4403.2,0.9407]
[1755340706594,2.3593,4403.3,4403.2,1.4516]
[1755340706798,2.3593,4403.3,4403.2,2.4004]
[1755340708700,2.3593,4403.2,4403.1,21.79899956]
[1755340709505,2.3593,4403.2,4403.1,21.79999956]
[1755340709705,2.34773964,4403.2,4403.1,21.79999956]
[1755340710200,2.34773964,4403.2,4403.1,22.17989956]
[1755340711002,2.34773964,4403.2,4403.1,23.63959956]
[1755340712005,2.34773964,4403.2,4403.1,3.26139956]
[1755340712203,2.34773964,4403.2,4403.1,24.39839956]
[1755340712907,2.48193039,4403.2,4403.1,0.10219956]
[1755340713206,2.71866758,4403.2,4403.1,0.10219956]
[1755340714107,2.89438694,4403.2,4403.1,0.10219956]
[1755340714404,5.89438694,4403.2,4403.1,0.10219956]
[1755340714601,1.0036,4402.4,4402.0,0.9488]
[1755340714802,1.9695,4401.9,4401.8,24.9547]
[1755340714998,2.2467,4401.9,4401.8,21.6988]
[1755340715203,1.9695,4401.9,4401.8,24.9547]
[1755340716505,1.9695,4401.9,4401.3,32.695]
[1755340716706,1.0036,4401.8,4401.7,1.5483]
[1755340716913,1.9695,4402.2,4402.1,1.5483]
[1755340717108,1.9695,4402.2,4402.1,3.8167]
[1755340717109,1.0036,4402.2,4402.1,3.8167]
[1755340717313,1.0036,4402.2,4402.1,0.5608]
[1755340717504,1.9695,4402.1,4402.0,2.1091]
[1755340717709,1.9695,4402.1,4402.0,3.8167]
[1755340719718,1.0036,4402.1,4402.0,3.8167]
[1755340721316,1.9695,4402.1,4402.0,2.1091]
[1755340721813,1.9695,4402.1,4402.0,0.5608]
[1755340722012,2.2467,4402.1,4402.0,21.6998]
[1755340722207,0.3989,4401.8,4401.7,22.6873]
[1755340722411,5.1773,4401.8,4401.7,24.9557]
[1755340723012,5.4545,4401.8,4401.7,22.5906]
[1755340723209,5.4545,4401.8,4401.7,0.5608]
[1755340724422,5.1773,4401.8,4401.7,2.1091]
[1755340724618,5.1773,4401.8,4401.7,3.8167]
[1755340725515,3.2078,4401.8,4401.7,3.8167]
[1755340726418,3.2078,4401.8,4401.7,24.9557]
[1755340727917,3.2078,4401.8,4401.7,24.9567]
[1755340728121,3.2078,4401.8,4401.7,3.8167]
[1755340728424,5.1773,4401.8,4401.7,24.9567]
[1755340731618,3.2078,4401.8,4401.7,24.9567]
[1755340731912,3.8104,4401.8,4401.7,24.9567]
[1755340732115,5.1587,4401.8,4401.7,24.9567]
[1755340732523,4.2042,4401.8,4401.7,24.9567]
[1755340732926,3.2078,4401.8,4401.7,24.9567]
[1755340735920,3.2078,4401.8,4401.7,3.8167]
[1755340736124,3.2078,4401.8,4401.7,24.9547]
[1755340741429,3.34223483,4401.8,4401.7,24.9547]
[1755340741631,3.2078,4402.4,4402.3,1.503]
[1755340741929,3.2078,4402.4,4402.3,24.921]
[1755340742427,3.2078,4402.9,4402.8,1.503]
[1755340742630,3.44848862,4402.9,4402.8,24.921]
[1755340743926,6.65048862,4402.9,4402.8,24.921]
[1755340744735,3.44848862,4402.9,4402.8,24.921]
[1755340745131,3.2078,4402.9,4402.8,24.921]
[1755340745430,0.7482,4403.2,4402.8,24.921]
[1755340745636,0.7482,4403.2,4403.1,1.503]
[1755340745931,0.98888105,4403.2,4403.1,24.919]
[1755340746238,0.9545,4403.3,4403.1,24.919]
[1755340746433,1.8537,4403.2,4403.1,22.637]
[1755340746635,3.202,4403.2,4403.1,22.637]
[1755340746938,4.73986838,4403.2,4402.3,0.5612]
[1755340747139,3.9747,4402.4,4401.5,2.282]
[1755340747334,0.6026,4401.7,4401.6,24.918]
[1755340747935,0.7053,4401.7,4401.6,24.918]
[1755340748332,1.8241,4401.7,4401.6,3.785]
[1755340748638,5.0319,4401.7,4401.6,24.916]
[1755340750639,3.8104,4401.7,4401.6,24.916]
[1755340751638,3.2078,4401.7,4401.6,24.916]
[1755340752735,3.3105,4401.7,4401.6,24.916]
[1755340752927,5.0319,4401.7,4401.6,24.916]
[1755340753128,5.0319,4401.7,4401.6,3.785]
[1755340753329,5.0319,4401.7,4401.6,24.915]
[1755340755136,5.0319,4401.7,4401.6,24.916]
[1755340756140,5.0319,4401.7,4401.6,3.785]
[1755340756341,5.0319,4401.7,4401.6,24.915]
[1755340756638,3.9131,4401.7,4401.6,24.915]
[1755340756842,4.9292,4401.7,4401.6,23.6182]
[1755340757140,5.0319,4401.7,4401.6,24.914]
[1755340757436,4.8676,4401.7,4401.6,24.914]
[1755340757637,3.2078,4402.7,4401.6,28.1218]
[1755340757836,1.6598,4402.5,4402.4,1.503]
[1755340758041,2.03381415,4402.5,4402.4,24.914]
[1755340758739,2.19811415,4402.5,4402.4,24.914]
[1755340759539,2.19810715,4402.5,4402.4,24.914]
[1755340760936,1.93110715,4402.5,4402.4,24.914]
[1755340761235,3.2078,4402.7,4402.4,24.914]
[1755340761440,3.2078,4402.7,4402.6,1.5094]
[1755340761639,3.2078,4402.7,4402.6,24.8442]
[1755340761640,3.33976633,4402.7,4402.6,24.8442]
[1755340761843,5.13286633,4402.7,4402.6,24.8442]
[1755340766244,3.33976633,4402.7,4402.6,24.8442]
[1755340766439,3.2078,4402.7,4402.6,24.8442]
[1755340767038,3.2078,4403.2,4402.6,24.8442]
[1755340767239,0.1320089,4403.1,4403.0,1.5094]
[1755340767438,0.1320089,4403.1,4403.0,24.8392]
[1755340768036,0.84479423,4403.1,4403.0,24.8392]
[1755340768842,0.13199423,4403.1,4403.0,24.8392]
[1755340769435,0.84479423,4403.1,4403.0,24.8392]
[1755340769641,2.89719423,4403.1,4403.0,24.8392]
[1755340770246,2.7652,4403.1,4403.0,24.8392]
[1755340778554,1.8401,4403.1,4403.0,24.8392]
[1755340780558,2.7652,4403.1,4403.0,24.8392]
[1755340781152,3.2078,4403.2,4403.0,23.5845]
[1755340781355,0.7128,4403.1,4403.0,22.6324]
[1755340781858,0.7128,4403.1,4403.0,24.8392]
[1755340782157,1.1951,4403.1,4403.0,24.8392]
[1755340782357,2.1202,4403.1,4403.0,24.8392]
[1755340782653,2.7652,4403.1,4403.0,24.8392]
[1755340783360,2.89690338,4403.1,4403.0,24.8392]
[1755340783554,2.89690338,4403.1,4403.0,24.121]
[1755340783757,1.1273,4402.3,4402.2,2.7641]
[1755340783956,2.7652,4402.3,4402.2,3.7162]
[1755340784161,2.7652,4402.3,4402.2,24.8272]
[1755340785360,2.7652,4402.3,4402.2,3.7162]
[1755340785562,2.7652,4402.3,4402.2,24.8262]
[1755340785861,2.7652,4402.3,4402.2,2.0459]
[1755340786061,1.1273,4401.9,4401.8,1.3227]
[1755340786258,2.7652,4401.9,4401.8,22.4327]
[1755340786462,2.89695786,4401.9,4401.8,0.3706]
[1755340786661,2.89695786,4401.9,4401.8,21.6455]
[1755340787861,2.89695786,4401.9,4401.8,0.5365]
[1755340788062,2.89695786,4401.9,4401.8,21.6455]
[1755340788764,2.89695786,4401.9,4401.8,0.9129]
[1755340788963,2.89695786,4401.9,4401.8,22.9295]
[1755340790265,2.89695786,4401.9,4401.8,1.8205]
[1755340790762,2.89695786,4401.9,4401.8,24.7445]
[1755340791166,2.89695786,4401.9,4401.8,3.6355]
[1755340791466,2.89695786,4401.9,4401.8,24.7445]
[1755340793369,2.7652,4401.9,4401.8,24.7445]
[1755340795970,2.7338,4401.9,4401.8,24.7445]
[1755340796268,4.1072,4402.2,4401.8,23.3004]
[1755340796468,2.7357,4402.0,4401.9,1.999]
[1755340796967,2.7357,4402.0,4401.9,2.7546]
[1755340797167,2.7357,4402.0,4401.9,3.6622]
[1755340797368,2.7357,4402.0,4401.9,1.5265]
[1755340797563,2.7357,4402.0,4401.9,2.9066]
[1755340797769,2.7357,4402.0,4401.9,3.6622]
[1755340799869,2.7357,4402.0,4401.9,21.6682]
[1755340800071,2.86726382,4402.0,4401.9,21.6682]
[1755340800264,2.86726382,4402.0,4401.9,0.5632]
[1755340800468,2.86726382,4402.0,4401.9,21.6682]
[1755340800670,0.8994,4401.9,4401.3,32.695]
[1755340800870,2.7357,4401.4,4401.3,34.0138]
[1755340801072,2.7357,4401.4,4401.3,56.0264]
[1755340802467,3.2078,4402.2,4401.3,55.2708]
[1755340802675,2.86722091,4402.1,4402.0,3.6622]
[1755340802971,2.86722091,4402.1,4402.0,24.7662]
[1755340803972,2.86722091,4402.1,4402.0,22.5161]
[1755340804168,2.86722091,4402.1,4402.0,22.0436]
[1755340804367,2.86722091,4402.1,4402.0,0.9396]
[1755340804568,2.86722091,4402.1,4402.0,22.0426]
[1755340804770,2.86719953,4402.1,4402.0,22.0426]
[1755340805074,2.86719953,4402.1,4402.0,21.6662]
[1755340805470,2.86719953,4402.1,4402.0,24.7652]
[1755340808375,0.13149953,4402.1,4402.0,24.7652]
[1755340808574,2.86719953,4402.1,4402.0,24.7652]
[1755340808868,2.86719953,4402.1,4402.0,22.0426]
[1755340809073,2.86719953,4402.1,4402.0,21.6662]
[1755340809575,2.7357,4401.9,4401.8,21.6632]
[1755340809771,2.86719953,4401.9,4401.8,0.5632]
[1755340810272,2.0286,4401.9,4401.3,33.6026]
[1755340810472,2.7357,4401.2,4401.1,1.4121]
[1755340810669,2.86734274,4401.2,4401.1,24.7602]
[1755340812473,1.96794274,4401.2,4401.1,24.7602]
[1755340813771,2.84934274,4401.2,4401.1,24.7602]
[1755340814973,2.84934274,4401.2,4401.1,22.0356]
[1755340815275,2.84934274,4401.2,4401.1,24.7582]
[1755340815976,2.84934274,4401.2,4401.1,24.0026]
[1755340816477,2.84934274,4401.2,4401.1,2.9066]
[1755340816871,2.84934274,4401.2,4401.1,23.5291]
[1755340817067,2.84934274,4401.2,4401.1,2.4341]
[1755340817275,2.84934274,4401.2,4401.1,1.5265]
[1755340817468,2.84934274,4401.2,4401.1,22.0346]
[1755340817672,2.84934274,4401.2,4401.1,22.9422]
[1755340817976,2.84934274,4401.2,4401.1,0.5632]
[1755340818372,2.84934274,4401.2,4401.1,0.9396]
[1755340818579,2.84934274,4401.2,4401.1,3.1733]
[1755340818773,2.84934274,4401.2,4401.1,3.6426]
[1755340819372,2.84934274,4401.2,4401.1,2.9034]
[1755340819678,2.84934274,4401.2,4401.1,0.9396]
[1755340819876,2.84934274,4401.2,4401.1,0.5632]
[1755340820679,2.84934274,4401.2,4401.1,1.4289]
[1755340820980,2.84934274,4401.2,4401.1,1.8037]
[1755340821377,3.06698694,4401.2,4401.1,1.8037]
[1755340821578,2.84934274,4401.2,4401.1,1.8037]
[1755340821979,2.84934274,4401.2,4401.1,0.5632]
[1755340822681,3.06697641,4401.2,4401.1,0.5632]
[1755340823582,3.06697641,4401.2,4400.1,3.2078]
[1755340823783,3.06697641,4401.2,4389.2,11.281407]
[1755340823784,0.6239,4400.4,4400.3,3.6095]
[1755340824076,1.49214274,4400.4,4400.3,24.6995]
[1755340824280,0.7366,4400.6,4400.5,1.4466]
[1755340824480,0.86833295,4400.6,4400.5,24.6995]
[1755340824880,2.21483295,4400.6,4400.5,24.6995]
[1755340826585,2.83873295,4400.6,4400.5,24.6995]
[1755340827185,2.83873295,4400.6,4400.5,3.6095]
[1755340827578,2.83873295,4400.6,4400.5,24.6975]
[1755340827887,1.23183295,4400.6,4400.5,24.6975]
[1755340828082,2.83873295,4400.6,4400.5,3.6095]
[1755340828485,2.83873295,4400.6,4400.5,24.6965]
[1755340830085,2.83873295,4400.6,4400.5,3.6095]
[1755340830280,2.83873295,4400.6,4400.5,24.6975]
[1755340830782,2.83873295,4400.6,4400.5,24.6955]
[1755340830977,2.83873295,4400.6,4400.5,3.6095]
[1755340831173,2.83873295,4400.6,4400.5,0.558]
[1755340831383,3.23362028,4400.6,4400.5,0.558]
[1755340831578,1.6069,4400.5,4400.2,0.558]
[1755340831779,2.707,4400.0,4399.9,3.6095]
[1755340831978,2.83873295,4400.0,4399.9,3.6095]
[1755340832386,2.83873295,4400.0,4399.9,0.558]
[1755340832889,1.1001,4399.6,4399.5,2.7438]
[1755340833081,1.1001,4398.9,4398.8,22.8005]
[1755340833380,2.707,4398.9,4398.8,23.8278]
[1755340833687,3.2078,4399.0,4398.9,3.6095]
[1755340833883,3.2078,4399.5,4399.0,1.4237]
[1755340834093,3.2078,4399.5,4399.4,3.6095]
[1755340834290,3.33937979,4399.5,4399.4,24.6925]
[1755340834584,3.2078,4400.1,4400.0,2.7438]
[1755340834790,3.33932604,4400.1,4400.0,3.6095]
[1755340835182,3.2078,4400.1,4400.0,3.6095]
[1755340838289,3.2078,4400.1,4399.4,0.45429]
[1755340838486,3.585,4400.1,4400.0,0.3748]
[1755340838692,6.42360492,4400.1,4400.0,3.6095]
[1755340838889,6.292,4400.1,4400.0,3.6095]
[1755340839085,5.4217,4400.1,4399.1,3.2078]
[1755340839289,0.7366,4399.8,4399.7,1.4466]
[1755340839596,0.86818636,4399.8,4399.7,3.6095]
[1755340839894,3.21578636,4399.8,4399.7,3.6095]
[1755340840295,2.34548636,4399.8,4399.7,3.6095]
[1755340840699,3.21578636,4399.8,4399.7,3.6095]
[1755340840997,3.73728636,4399.8,4399.7,2.8703]
[1755340841393,3.21578636,4399.8,4399.7,3.6095]
[1755340841595,3.21578636,4399.8,4399.7,24.6905]
[1755340842192,0.7366,4399.7,4399.3,0.558]
[1755340842397,3.0842,4399.4,4399.3,3.6095]
[1755340842604,3.0842,4399.4,4399.3,24.6895]
[1755340843091,3.6057,4399.4,4399.3,23.9503]
[1755340843291,3.0842,4399.4,4399.3,24.6895]
[1755340843596,3.7372143,4399.4,4399.3,23.9503]
[1755340843789,3.7372143,4399.4,4399.0,1.6049]
[1755340844100,3.7372143,4399.4,4398.1,3.2078]
[1755340844101,3.0842,4399.0,4398.9,3.6095]
[1755340844286,0.4762,4399.0,4398.9,24.6895]
[1755340844595,3.0842,4399.0,4398.9,24.6895]
[1755340844798,2.2139,4399.0,4398.9,24.6895]
[1755340845201,3.0842,4399.0,4398.9,24.6895]
[1755340845891,3.0842,4399.0,4398.9,3.6095]
[1755340846097,3.0842,4399.0,4398.9,24.6895]
[1755340846295,3.0842,4399.0,4398.9,23.9503]
[1755340846601,3.6057,4399.0,4398.9,23.9503]
[1755340846791,3.0842,4399.0,4398.9,21.078]
[1755340846999,3.6057,4399.0,4398.9,21.078]
[1755340847198,2.1284,4398.9,4398.5,0.558]
[1755340847395,3.6057,4398.7,4398.6,21.078]
[1755340847594,4.8165644,4398.7,4398.6,0.558]
[1755340848197,6.2083644,4398.7,4398.6,0.9328]
[1755340848393,6.4234644,4398.7,4398.6,3.6095]
[1755340849201,6.9311644,4398.7,4398.6,3.6095]
[1755340851499,6.4234644,4398.7,4398.6,3.6095]
[1755340851800,5.5531644,4398.7,4398.6,3.6095]
[1755340852306,6.4029644,4398.7,4398.6,3.6095]
[1755340853796,6.91200826,4398.7,4398.6,3.6095]
[1755340854197,6.91200816,4398.7,4398.6,3.6095]
[1755340854398,6.40430816,4398.7,4398.6,3.6095]
[1755340854599,6.40430816,4398.7,4398.6,2.8703]
[1755340854999,5.55450816,4398.7,4398.6,3.555]
[1755340855503,6.40430816,4398.7,4398.6,3.555]
[1755340858107,3.34060816,4398.7,4398.6,3.555]
[1755340858300,3.2078,4399.3,4398.7,2.131]
[1755340858500,3.2078,4399.3,4399.1,3.5631]
[1755340858704,4.4105,4399.3,4398.3,0.4544]
[1755340858900,1.5639,4399.2,4398.5,2.131]
[1755340859104,3.2078,4399.3,4398.4,21.073]
[1755340859406,0.13287248,4399.2,4399.1,1.4321]
[1755340859607,3.12187248,4399.2,4399.1,3.5631]
[1755340860104,3.62957248,4399.2,4399.1,2.3831]
[1755340860306,3.62957248,4399.2,4399.1,0.5609]
[1755340860609,0.13287248,4399.2,4399.1,3.5631]
[1755340860803,1.67747248,4399.2,4399.1,3.5631]
[1755340861001,3.12187248,4399.2,4399.1,3.5631]
[1755340861602,3.62957248,4399.2,4399.1,3.5631]
[1755340862401,3.12187248,4399.2,4399.1,3.5631]
[1755340862605,0.13287248,4399.2,4399.1,3.5631]
[1755340862805,0.62147248,4399.2,4399.1,3.5631]
[1755340863007,3.12187248,4399.2,4399.1,3.5631]
[1755340863711,1.55797248,4399.2,4398.7,21.7537]
[1755340863904,3.4967,4398.9,4398.8,0.5609]
[1755340864102,3.62957248,4398.9,4398.8,0.5609]
[1755340864607,3.62957248,4398.9,4398.8,1.8063]
[1755340865212,3.12187248,4398.9,4398.8,3.5631]
[1755340868308,3.3393808,4398.9,4398.8,3.5631]
[1755340869010,2.4895808,4398.9,4398.8,3.5631]
[1755340869212,3.3393808,4398.9,4398.8,3.5631]
[1755340870918,3.8470808,4398.9,4398.8,0.9209]
[1755340871213,3.8470808,4398.9,4398.8,1.8063]
[1755340871408,3.8470808,4398.9,4398.8,2.8784]
[1755340871604,3.3393808,4398.9,4398.8,3.5631]
[1755340878118,3.33966281,4398.9,4398.8,3.5631]
[1755340881018,3.33965079,4398.9,4398.8,3.5631]
[1755340881219,0.13287248,4398.9,4398.8,3.5753]
[1755340881523,3.9287,4399.3,4399.2,1.4077]
[1755340881713,5.67658995,4399.3,4399.2,23.3645]
[1755340882012,6.98358995,4399.3,4399.2,23.8656]
[1755340882210,6.49528995,4399.3,4398.1,3.2078]
[1755340882409,2.935,4399.1,4399.0,2.8136]
[1755340882608,3.77578995,4399.1,4399.0,0.5011]
[1755340882817,3.77578995,4399.1,4398.7,1.6067]
[1755340883018,2.1163,4398.8,4398.7,3.5155]
[1755340883221,1.90748995,4398.8,4398.7,3.5155]
[1755340883919,1.68969734,4398.8,4398.7,3.5155]
[1755340884117,1.90746508,4398.8,4398.7,3.5155]
[1755340884319,3.28746508,4398.8,4398.7,3.5155]
[1755340885120,1.74786508,4398.8,4398.7,1.3287]
[1755340885317,3.28746508,4398.8,4398.7,1.3287]
[1755340885514,3.77576508,4398.8,4398.7,0.8538]
[1755340885711,1.74786508,4398.8,4398.7,0.5011]
[1755340885916,1.74786508,4398.8,4398.6,21.05]
[1755340886120,1.53009734,4398.7,4398.6,21.9038]
[1755340886418,3.06969734,4398.7,4398.6,24.5635]
[1755340886618,3.06969824,4398.7,4398.6,3.5155]
[1755340886924,3.06969824,4398.7,4398.6,1.3287]
[1755340886925,3.77579228,4398.7,4398.6,1.3287]
[1755340887123,3.28749228,4398.7,4398.6,3.5155]
[1755340887818,3.06969824,4398.7,4398.6,3.5155]
[1755340888012,3.06969824,4398.7,4398.6,24.5625]
[1755340888013,0.13469824,4398.7,4398.6,24.5625]
[1755340888214,3.28749543,4398.7,4398.6,24.5625]
[1755340888419,1.56279543,4398.7,4398.6,24.5625]
[1755340888618,0.62409824,4398.7,4398.6,24.5625]
[1755340888818,0.84190473,4398.7,4398.6,24.5625]
[1755340889219,0.62409824,4398.7,4398.6,24.5625]
[1755340889414,0.35251349,4398.7,4398.6,24.5625]
[1755340889815,0.13469824,4398.7,4398.6,24.5625]
[1755340890019,3.2078,4399.4,4398.6,22.4547]
[1755340890226,1.61321368,4399.3,4399.2,3.5155]
[1755340890525,2.33411368,4399.3,4399.2,24.5595]
[1755340890919,0.21781368,4399.3,4399.2,24.5595]
[1755340891322,3.2078,4400.4,4400.3,0.8276]
[1755340891528,3.2078,4400.4,4400.3,2.0306]
[1755340891726,4.0619,4400.4,4400.3,2.0306]
[1755340892328,1.4154,4400.6,4400.5,2.0306]
[1755340892532,1.4154,4400.6,4400.5,23.0726]
[1755340892917,2.1163,4400.9,4400.8,0.8276]
[1755340893120,2.9704,4400.9,4400.8,0.5011]
[1755340893327,3.5004,4400.9,4400.8,2.0306]
[1755340893629,2.9704,4400.9,4400.8,2.0306]
[1755340893827,3.2078,4401.7,4400.9,0.3527]
[1755340894128,6.1782,4401.7,4401.6,2.0306]
[1755340894630,2.9704,4401.7,4401.6,2.0306]
[1755340895728,2.9704,4401.7,4400.8,3.2078]
[1755340895926,3.2078,4401.9,4401.8,1.5295]
[1755340896126,3.2078,4401.9,4401.8,2.0306]
[1755340896327,0.7209,4401.7,4401.3,1.203]
[1755340896527,2.9704,4401.4,4401.3,23.0676]
[1755340897727,3.2078,4401.9,4401.8,0.3527]
[1755340897925,2.9704,4402.3,4402.2,0.8276]
[1755340898125,3.5004,4402.3,4402.2,0.5011]
[1755340898325,2.9704,4402.3,4402.2,2.0306]
[1755340898528,3.5004,4402.2,4402.1,21.5341]
[1755340898827,3.2078,4402.7,4402.1,21.033]
[1755340899023,6.1782,4402.7,4402.6,2.0306]
[1755340899625,2.9704,4402.7,4402.6,2.0306]
[1755340899822,3.2078,4403.3,4402.7,0.5011]
[1755340900026,5.3241,4403.3,4403.2,0.8276]
[1755340900330,3.7691,4403.3,4403.2,2.0306]
[1755340900729,6.1782,4403.3,4403.2,2.0306]
[1755340901727,6.7082,4403.3,4403.2,2.0306]
[1755340902032,6.1782,4403.3,4403.2,2.0306]
[1755340903426,2.105,4403.2,4402.9,21.5301]
[1755340903633,3.5004,4403.0,4402.9,22.3577]
[1755340904334,2.9704,4403.0,4402.9,23.0596]
[1755340905026,2.9704,4403.0,4402.9,23.0556]
[1755340905228,3.5004,4403.0,4402.9,1.3287]
[1755340905628,3.5004,4403.0,4402.9,2.0306]
[1755340906030,3.5004,4403.0,4402.9,1.3287]
[1755340906227,3.5004,4403.0,4402.9,0.8538]
[1755340906432,1.3841,4402.9,4402.1,0.5011]
[1755340906630,2.9704,4402.2,4402.1,1.3287]
[1755340906935,2.9704,4402.2,4402.1,2.0306]
[1755340907134,3.5004,4402.2,4402.1,23.0526]
[1755340907341,2.1163,4402.7,4402.6,0.3527]
[1755340907533,2.9704,4402.7,4402.6,2.0306]
[1755340910246,3.4886,4402.7,4402.6,2.0306]
[1755340911142,2.9704,4402.7,4402.6,2.0306]
[1755340911643,3.4886,4402.7,4402.6,2.0423]
[1755340911835,2.9113,4402.7,4402.6,2.0423]
[1755340912230,3.4295,4402.7,4402.6,2.0423]
[1755340912430,2.9113,4402.7,4402.6,2.0423]
[1755340913842,1.9048,4402.7,4402.6,2.0423]
[1755340914140,1.4154,4402.7,4402.6,2.0423]
[1755340916739,0.6684,4403.1,4402.6,2.0423]
[1755340916944,2.957,4403.0,4402.9,0.7886]
[1755340917140,2.957,4403.0,4402.9,2.0322]
[1755340918345,3.60280552,4403.0,4402.9,2.0322]
[1755340918940,3.60280552,4403.0,4402.9,1.3186]
[1755340919344,2.0389,4402.5,4402.4,23.0472]
[1755340919544,2.957,4402.5,4402.4,23.0472]
[1755340920145,3.08505907,4402.5,4402.4,23.0472]
[1755340921338,0.12805907,4402.5,4402.4,23.0472]
[1755340921742,3.2078,4403.4,4403.3,1.5022]
[1755340922047,5.01755717,4403.4,4403.3,2.0322]
[1755340922350,6.75502527,4403.4,4403.3,2.0322]
[1755340923447,6.75502527,4403.4,4402.9,21.8026]
[1755340923448,0.8953,4403.0,4402.9,21.8026]
[1755340923745,3.88532527,4403.0,4402.9,2.0322]
[1755340924243,0.33445717,4403.0,4402.9,2.0322]
[1755340924449,3.88589179,4403.0,4402.9,2.0322]
[1755340925449,3.29184795,4403.0,4402.9,2.0322]
[1755340925648,2.28534795,4403.0,4402.9,2.0322]
[1755340926037,2.40478368,4403.0,4402.9,2.0322]
[1755340926243,1.84758368,4403.0,4402.9,2.0322]
[1755340926649,0.92948368,4403.0,4402.9,2.0322]
[1755340928238,1.84758368,4403.0,4402.9,2.0322]
[1755340928442,0.92948368,4403.0,4402.9,2.0322]
[1755340929942,0.72289892,4403.0,4402.9,2.0322]
[1755340930449,0.12826319,4403.0,4402.9,2.0322]
[1755340930649,0.12826319,4403.4,4402.9,2.0322]
[1755340930851,2.07876319,4403.3,4403.2,5.24]
[1755340931049,2.07876319,4403.3,4403.2,26.248]
[1755340931050,3.68074068,4403.3,4403.2,26.248]
[1755340931344,4.19894068,4403.3,4403.2,26.248]